bitfinex-derivatives/quotes_ETHF0:USTF0_20241017
["timestamp","ask_amount","ask_price","bid_price","bid_amount"]
[1729169107427,1.38,2610.0,2609.6,4.5878]
[1729169107628,1.76328,2609.7,2609.6,4.97109]
[1729169107831,1.76328,2609.7,2609.6,3.2078]
[1729169109130,1.76328,2609.7,2609.4,1.7797]
[1729169109131,0.38331,2609.5,2609.4,0.3997]
[1729169109330,1.76331,2609.5,2609.4,0.3997]
[1729169109932,0.38331,2609.5,2609.4,0.3997]
[1729169110931,0.38331,2609.5,2609.3,0.3951]
[1729169110932,0.8433,2609.6,2609.3,0.3951]
[1729169111136,0.38332,2609.4,2609.3,0.3951]
[1729169111640,0.38332,2609.5,2609.4,0.38331]
[1729169112436,0.38332,2609.4,2609.3,0.77842]
[1729169113424,0.38332,2609.4,2609.3,0.3951]
[1729169113626,0.38332,2609.4,2609.3,0.77844]
[1729169115029,0.38332,2609.4,2609.3,0.3951]
[1729169115237,0.38332,2609.4,2609.3,0.77844]
[1729169115734,0.38332,2609.4,2609.3,0.3951]
[1729169115934,0.38332,2609.4,2609.3,0.77844]
[1729169116132,1.80155,2609.6,2609.2,0.4161]
[1729169116336,0.38335,2609.2,2609.1,0.79376]
[1729169116738,0.38334,2609.4,2609.3,0.38332]
[1729169117234,0.38333,2609.4,2609.3,0.38332]
[1729169117434,0.38333,2609.4,2609.3,0.80782]
[1729169117640,1.38444,2609.9,2609.3,3.6323]
[1729169117830,0.38332,2609.6,2609.5,0.38329]
[1729169118329,0.38332,2609.5,2609.4,0.3833]
[1729169118531,0.3833,2609.7,2609.6,0.38328]
[1729169118929,1.77353,2609.9,2609.3,3.6323]
[1729169119135,0.3833,2609.6,2609.5,0.38329]
[1729169119933,0.38332,2609.5,2609.4,0.38331]
[1729169121341,0.38328,2609.8,2609.7,0.38326]
[1729169121540,0.38326,2609.9,2609.8,0.38325]
[1729169121741,0.38325,2609.9,2609.8,0.38325]
[1729169122436,0.38325,2609.9,2609.8,0.78155]
[1729169123539,0.38325,2610.0,2609.9,0.38323]
[1729169123844,0.38324,2610.0,2609.9,0.38323]
[1729169124034,0.38324,2610.0,2609.9,0.78403]
[1729169125444,0.38324,2610.0,2609.9,0.4008]
[1729169127438,0.38324,2610.0,2609.9,0.78405]
[1729169127746,0.38324,2610.0,2609.9,0.4008]
[1729169128239,0.95813,2609.9,2609.4,3.2078]
[1729169128542,0.38331,2609.5,2609.4,3.6218]
[1729169128845,0.38331,2609.5,2609.4,0.414]
[1729169131340,0.38329,2609.7,2609.4,0.414]
[1729169131549,0.38328,2609.8,2609.7,0.38327]
[1729169131843,0.38328,2609.8,2609.5,0.95827]
[1729169131844,0.38326,2609.9,2609.8,0.38324]
[1729169132844,2.99,2610.1,2609.8,0.38324]
[1729169133040,3.2078,2610.3,2609.9,4.37542]
[1729169133242,3.2078,2610.3,2610.2,0.3832]
[1729169134152,3.59099,2610.3,2610.2,0.3832]
[1729169134353,0.38322,2610.1,2610.0,0.77023]
[1729169134650,3.591,2610.3,2610.2,0.3832]
[1729169134851,3.2078,2610.3,2610.2,0.3832]
[1729169135353,3.59099,2610.3,2610.2,0.3832]
[1729169135555,3.59099,2610.3,2610.1,0.3832]
[1729169135556,0.38321,2610.2,2610.1,0.3832]
[1729169135855,3.591,2610.3,2610.2,0.3832]
[1729169136244,3.2078,2610.3,2610.0,0.387]
[1729169136547,0.38322,2610.1,2610.0,0.38322]
[1729169136745,0.38323,2610.0,2609.9,0.81054]
[1729169136944,0.38323,2610.0,2609.9,0.4273]
[1729169137147,2.99,2610.0,2609.7,3.2078]
[1729169137451,0.38326,2609.8,2609.7,3.2078]
[1729169137948,0.38326,2609.8,2609.7,3.59108]
[1729169138743,0.38323,2610.1,2610.0,0.38322]
[1729169139150,0.4266,2610.2,2609.7,4.16599]
[1729169139347,0.38325,2610.0,2609.9,0.38324]
[1729169139845,0.38325,2610.0,2609.9,3.59104]
[1729169140045,0.38325,2610.0,2609.9,0.38324]
[1729169140349,0.38328,2609.8,2609.7,0.38327]
[1729169140547,0.38328,2609.7,2609.6,0.4024]
[1729169140743,0.95814,2609.9,2609.3,3.2078]
[1729169140948,0.38332,2609.5,2609.4,0.3833]
[1729169141952,0.38332,2609.5,2609.2,0.4258]
[1729169141953,0.38334,2609.3,2609.2,0.4258]
[1729169142951,3.37334,2609.3,2609.2,0.4258]
[1729169143343,0.38336,2609.1,2609.0,3.2078]
[1729169143551,0.38336,2609.1,2609.0,3.59118]
[1729169145255,0.38336,2609.1,2609.0,0.38338]
[1729169145457,0.38336,2609.1,2609.0,3.59118]
[1729169150350,0.38336,2609.1,2608.9,0.4019]
[1729169150658,3.37334,2609.3,2608.9,0.78529]
[1729169150659,0.38338,2609.0,2608.9,0.78529]
[1729169152459,0.38338,2609.0,2608.9,0.4019]
[1729169153356,0.38338,2609.0,2608.9,0.78529]
[1729169156754,0.8395,2609.2,2608.9,0.4019]
[1729169156955,0.38338,2609.1,2609.0,0.38336]
[1729169158758,0.413,2609.2,2608.9,0.4019]
[1729169158959,0.38338,2609.0,2608.9,0.78529]
[1729169160265,0.38338,2609.0,2608.8,0.7965]
[1729169160471,0.38339,2608.9,2608.8,0.7965]
[1729169164588,0.38341,2608.8,2608.7,0.414]
[1729169164876,0.80671,2608.8,2608.7,0.414]
[1729169165174,0.80671,2608.8,2608.7,0.79742]
[1729169165481,0.80671,2608.8,2608.7,0.414]
[1729169165669,0.80671,2608.8,2608.7,0.79742]
[1729169165870,0.38344,2608.6,2608.5,0.79994]
[1729169166176,0.38344,2608.6,2608.5,1.20235]
[1729169168176,49.86275,2609.1,2608.5,1.77754]
[1729169168177,48.79475,2609.1,2608.5,1.77754]
[1729169168365,48.79475,2609.1,2609.0,0.38338]
[1729169168366,3.2078,2609.1,2609.0,0.38338]
[1729169168570,3.2078,2609.4,2609.2,0.38334]
[1729169168772,3.2078,2609.4,2608.9,1.36669]
[1729169168977,3.2078,2609.4,2609.3,0.38334]
[1729169168978,3.59112,2609.4,2609.3,0.38334]
[1729169169571,3.2078,2609.4,2609.3,0.38334]
[1729169170183,0.4172,2609.7,2609.0,7.99105]
[1729169170184,3.625,2609.7,2609.0,7.99105]
[1729169170382,3.2078,2609.7,2609.2,3.94836]
[1729169170683,3.782,2610.0,2609.3,3.2078]
[1729169170684,0.792,2610.0,2609.3,3.2078]
[1729169170880,0.792,2610.0,2609.4,3.94831]
[1729169171076,0.792,2610.0,2609.9,0.38324]
[1729169171077,0.38324,2610.0,2609.9,0.38324]
[1729169171273,0.38323,2610.0,2609.8,0.38325]
[1729169171578,0.4044,2610.3,2609.8,2.99]
[1729169171883,0.4044,2610.3,2609.6,3.2078]
[1729169171884,0.38323,2610.1,2609.9,0.81114]
[1729169172076,0.38323,2610.1,2610.0,0.38323]
[1729169172275,0.38323,2610.1,2609.9,0.81113]
[1729169172476,3.94802,2610.2,2609.6,3.2078]
[1729169172778,3.94802,2610.2,2609.6,3.6357]
[1729169172779,0.38328,2609.7,2609.6,3.6357]
[1729169173284,0.38328,2609.7,2609.6,3.2078]
[1729169173869,3.4129,2610.0,2609.6,3.2078]
[1729169174088,0.38327,2609.8,2609.7,0.38327]
[1729169174282,0.38327,2609.8,2609.7,0.81077]
[1729169174482,0.38325,2609.9,2609.8,0.38325]
[1729169177072,0.38326,2609.8,2609.7,0.81078]
[1729169177278,0.38326,2609.8,2609.6,3.2078]
[1729169177279,0.38328,2609.7,2609.6,3.2078]
[1729169177679,0.38328,2609.7,2609.6,3.59109]
[1729169177884,0.412,2609.8,2609.7,0.38326]
[1729169177885,0.38327,2609.8,2609.7,0.38326]
[1729169179073,0.38328,2609.7,2609.6,3.2078]
[1729169179678,0.38328,2609.7,2609.6,3.59109]
[1729169180588,0.38328,2609.8,2609.7,0.38327]
[1729169180789,0.38328,2609.7,2609.6,3.59108]
[1729169182582,1.37007,2610.1,2609.6,3.2078]
[1729169182780,0.38326,2609.9,2609.8,0.38325]
[1729169182980,6.604,2610.2,2609.7,0.4275]
[1729169182981,3.614,2610.2,2609.7,0.4275]
[1729169183281,3.614,2610.2,2610.1,0.38322]
[1729169183282,3.2078,2610.2,2610.1,0.38322]
[1729169184088,3.2078,2610.2,2610.1,0.81072]
[1729169184486,0.3832,2610.2,2610.1,0.81072]
[1729169186388,4.16571,2610.5,2610.2,0.38319]
[1729169186389,0.3832,2610.3,2610.2,0.38319]
[1729169186592,4.16571,2610.5,2610.1,0.4275]
[1729169186593,0.3832,2610.2,2610.1,0.8107]
[1729169187995,0.3832,2610.3,2610.2,0.38319]
[1729169189892,0.3832,2610.2,2610.1,0.81071]
[1729169192286,0.3832,2610.2,2610.1,0.4275]
[1729169192987,0.3832,2610.2,2610.1,0.81072]
[1729169194189,0.3832,2610.2,2610.1,0.4275]
[1729169194694,0.3832,2610.2,2610.1,0.81072]
[1729169196197,0.3832,2610.2,2610.0,0.3995]
[1729169196198,0.95795,2610.4,2610.0,0.3995]
[1729169196501,0.3832,2610.4,2610.3,0.38318]
[1729169203397,0.38313,2610.8,2610.7,0.38312]
[1729169203592,1.77731,2611.1,2610.5,7.1557]
[1729169203904,0.38312,2610.9,2610.8,0.3831]
[1729169205596,0.95772,2611.0,2610.5,3.2078]
[1729169205791,0.38313,2610.8,2610.7,0.38312]
[1729169207894,0.95772,2611.0,2610.5,3.2078]
[1729169208101,4.201,2611.1,2610.5,3.2078]
[1729169208396,0.38314,2610.6,2610.5,3.2078]
[1729169209498,0.38314,2610.6,2610.5,3.59096]
[1729169209696,0.38314,2610.6,2610.5,3.2078]
[1729169210393,0.77904,2610.6,2610.5,3.2078]
[1729169212292,0.38314,2610.6,2610.5,3.59096]
[1729169212499,3.2078,2610.9,2610.6,0.38312]
[1729169212500,0.38314,2610.7,2610.6,0.38312]
[1729169213397,4.16556,2610.9,2610.5,3.2078]
[1729169213594,0.38314,2610.6,2610.5,3.59095]
[1729169214798,0.38314,2610.6,2610.5,3.2078]
[1729169218297,0.38316,2610.5,2610.4,0.4127]
[1729169218500,0.38316,2610.5,2610.4,0.8159]
[1729169219392,0.38322,2610.1,2610.0,0.38323]
[1729169219602,0.38322,2610.1,2610.0,0.4228]
[1729169220304,3.2078,2610.3,2609.8,0.4201]
[1729169220502,0.38325,2609.9,2609.8,0.4201]
[1729169221696,0.38325,2609.9,2609.8,0.80336]
[1729169221901,44.0078,2610.3,2609.8,3.4101]
[1729169222098,0.38323,2610.1,2610.0,0.38322]
[1729169222400,0.38323,2610.0,2609.9,0.79014]
[1729169222608,4.16579,2610.3,2610.0,0.77372]
[1729169222609,0.38323,2610.1,2610.0,0.77372]
[1729169222908,0.38321,2610.2,2610.1,0.3832]
[1729169223411,3.2078,2610.3,2610.0,0.3905]
[1729169223412,0.38322,2610.1,2610.0,0.3905]
[1729169225507,0.77252,2610.1,2610.0,0.3905]
[1729169225696,0.77252,2610.1,2609.8,0.4201]
[1729169225908,0.38325,2609.9,2609.8,0.4201]
[1729169226106,0.38325,2609.9,2609.8,0.80336]
[1729169226402,0.38325,2609.9,2609.8,0.4201]
[1729169226608,0.38325,2609.9,2609.8,0.80336]
[1729169228006,7.55329,2610.3,2609.8,0.4201]
[1729169228007,4.56329,2610.3,2609.8,0.4201]
[1729169228213,0.38325,2610.0,2609.9,0.38323]
[1729169228800,3.2078,2610.4,2609.9,12.8212]
[1729169229007,0.38318,2610.5,2610.4,0.38316]
[1729169229209,0.38315,2610.6,2610.5,0.38314]
[1729169229502,3.2078,2610.7,2610.6,0.38313]
[1729169229503,0.38314,2610.7,2610.6,0.38313]
[1729169229707,3.2078,2611.1,2610.4,3.2078]
[1729169230012,3.2078,2611.1,2610.5,0.4225]
[1729169230208,3.2078,2611.1,2610.6,0.3869]
[1729169230209,0.38314,2610.7,2610.6,0.3869]
[1729169230407,3.2078,2611.1,2610.4,3.59096]
[1729169230408,0.38316,2610.5,2610.4,3.59096]
[1729169230607,0.38316,2610.5,2610.4,3.97916]
[1729169230907,0.38316,2610.5,2610.4,3.596]
[1729169233215,4.34864,2610.7,2609.9,2.99]
[1729169233405,0.38323,2610.0,2609.9,0.4137]
[1729169233607,0.38323,2610.0,2609.9,0.79695]
[1729169234213,0.38323,2610.0,2609.9,0.4137]
[1729169234414,0.38328,2609.7,2609.6,0.38328]
[1729169234613,7.15583,2610.2,2609.6,0.38328]
[1729169234614,0.38327,2609.8,2609.7,0.38326]
[1729169235408,0.95809,2610.0,2609.6,0.4137]
[1729169235604,0.38328,2609.7,2609.6,0.79697]
[1729169236103,0.3893,2610.0,2609.6,0.4137]
[1729169236305,0.38327,2609.8,2609.7,0.38327]
[1729169237306,0.38328,2609.7,2609.6,0.79699]
[1729169239318,0.38328,2609.7,2609.6,0.4137]
[1729169239525,0.38328,2609.7,2609.6,0.79699]
[1729169247328,0.38328,2609.7,2609.6,0.4137]
[1729169248937,0.95813,2609.9,2609.5,0.4153]
[1729169249124,0.38331,2609.5,2609.4,3.2078]
[1729169250555,0.38331,2609.5,2609.4,3.59112]
[1729169252440,0.3949,2609.9,2609.4,3.2078]
[1729169252646,0.38326,2609.9,2609.8,0.38325]
[1729169252846,0.38328,2609.8,2609.7,0.38326]
[1729169253747,0.38328,2609.8,2609.7,0.76976]
[1729169254660,0.38326,2609.9,2609.8,0.38325]
[1729169256260,0.38326,2609.8,2609.7,0.76977]
[1729169257452,4.16586,2610.1,2609.7,0.3865]
[1729169257655,3.2078,2610.4,2610.0,0.38323]
[1729169257954,3.2078,2610.4,2610.1,0.4276]
[1729169257955,0.3832,2610.2,2610.1,0.4276]
[1729169258957,0.38323,2610.0,2609.9,0.4112]
[1729169259146,0.38325,2609.9,2609.8,0.4076]
[1729169261759,0.38325,2609.9,2609.8,0.79086]
[1729169263553,4.033,2610.3,2609.8,0.4076]
[1729169263554,3.2078,2610.3,2609.8,0.4076]
[1729169263759,0.3832,2610.3,2610.2,0.38319]
[1729169264661,0.3832,2610.3,2610.2,0.79269]
[1729169264853,0.3832,2610.3,2610.2,0.4095]
[1729169265260,0.3832,2610.3,2610.2,0.7927]
[1729169265564,0.3832,2610.3,2610.2,0.4095]
[1729169266355,0.3832,2610.3,2610.2,0.7927]
[1729169267661,0.3832,2610.3,2610.2,0.4095]
[1729169268362,0.95802,2610.2,2609.8,0.402]
[1729169268568,0.95802,2610.2,2609.8,0.4169]
[1729169268569,0.38325,2609.9,2609.8,0.4169]
[1729169273064,0.38326,2609.8,2609.7,0.4059]
[1729169273267,0.8302,2610.0,2609.5,0.3901]
[1729169273465,0.38329,2609.6,2609.5,0.3901]
[1729169276862,0.95818,2609.8,2609.4,0.4226]
[1729169277066,0.81011,2609.5,2609.4,0.4226]
[1729169279871,0.38332,2609.4,2609.3,3.2078]
[1729169280584,0.38334,2609.3,2609.2,1.19904]
[1729169281071,0.38334,2609.3,2609.2,0.8157]
[1729169281373,0.95836,2609.3,2608.8,4.62858176]
[1729169281567,0.38336,2609.1,2609.0,0.4163]
[1729169281767,0.38336,2609.1,2609.0,0.79968]
[1729169282372,0.38335,2609.3,2609.2,0.38334]
[1729169282673,3.26290157,2610.0,2609.2,2.99]
[1729169282674,4.16589,2610.0,2609.2,2.99]
[1729169282867,0.38326,2609.9,2609.8,0.38324]
[1729169283474,0.95802,2610.2,2609.7,0.8306]
[1729169283768,0.38326,2609.9,2609.8,0.38325]
[1729169283966,0.95802,2610.2,2609.7,1.21387]
[1729169283967,0.38326,2609.8,2609.7,1.21387]
[1729169285268,0.38326,2609.9,2609.8,0.38325]
[1729169285467,8.36876,2610.4,2609.7,3.8206]
[1729169285468,4.4208,2610.4,2609.7,3.8206]
[1729169285665,4.4208,2610.4,2610.1,0.38321]
[1729169285666,0.38322,2610.2,2610.1,0.38321]
[1729169286068,3.2078,2610.4,2610.2,0.38319]
[1729169286069,0.3832,2610.3,2610.2,0.38319]
[1729169286275,0.3832,2610.3,2609.9,3.94812]
[1729169286276,0.38323,2610.1,2610.0,0.38322]
[1729169286865,0.38322,2610.2,2610.1,0.38321]
[1729169287771,0.38323,2610.1,2610.0,0.38322]
[1729169288575,0.38321,2610.2,2610.1,0.3832]
[1729169288775,0.38321,2610.3,2610.2,0.38319]
[1729169289179,0.38322,2610.2,2610.1,0.38321]
[1729169290275,0.38323,2610.1,2610.0,0.38322]
[1729169291285,0.38325,2610.0,2609.9,0.38324]
[1729169291489,3.2078,2610.4,2609.8,3.2078]
[1729169291490,0.38325,2609.9,2609.8,3.2078]
[1729169292673,0.38325,2609.9,2609.8,3.59106]
[1729169293884,0.4135,2610.2,2609.8,3.2078]
[1729169294188,3.2078,2610.4,2610.0,0.38322]
[1729169294189,0.38324,2610.1,2610.0,0.38322]
[1729169294779,4.16574,2610.4,2609.8,3.2078]
[1729169294983,0.3832,2610.3,2610.2,0.38319]
[1729169295986,1.2147,2610.6,2609.8,3.2078]
[1729169296194,0.38325,2610.0,2609.9,0.38324]
[1729169296981,0.95796,2610.4,2609.8,3.2078]
[1729169297187,0.38322,2610.2,2610.1,0.3832]
[1729169297384,0.38322,2610.2,2610.1,0.7993]
[1729169298094,0.38322,2610.2,2610.1,0.4161]
[1729169298294,0.38322,2610.2,2610.1,0.79932]
[1729169299089,0.95796,2610.4,2609.8,3.2078]
[1729169299090,6.1978,2610.4,2609.8,3.2078]
[1729169299291,0.38325,2609.9,2609.8,3.59104]
[1729169300786,0.38322,2610.2,2610.1,0.3832]
[1729169300987,0.95795,2610.4,2609.8,3.2078]
[1729169301188,0.38322,2610.1,2610.0,0.38321]
[1729169302983,1.2147,2610.6,2610.0,2.99]
[1729169303185,0.38319,2610.4,2610.3,0.38317]
[1729169304387,0.3832,2610.2,2610.1,0.8113]
[1729169305387,0.95796,2610.4,2609.8,6.1978]
[1729169305588,0.38325,2609.9,2609.8,0.81136]
[1729169306589,1.36829,2610.3,2609.8,0.4281]
[1729169306788,0.38325,2610.0,2609.9,0.38322]
[1729169307192,0.38322,2610.2,2610.1,0.3832]
[1729169308092,0.95799,2610.3,2609.8,6.6259]
[1729169308388,0.38325,2610.0,2609.9,0.38325]
[1729169308591,0.38325,2610.0,2609.9,0.76875]
[1729169312093,0.38322,2610.2,2610.1,0.3832]
[1729169313604,0.95798,2610.4,2610.0,3.2078]
[1729169313786,0.95798,2610.4,2610.0,0.38322]
[1729169313787,0.38323,2610.1,2610.0,0.38322]
[1729169314800,0.38323,2610.1,2610.0,0.77542]
[1729169316190,0.38323,2610.1,2610.0,0.3922]
[1729169320899,0.38323,2610.1,2610.0,0.77543]
[1729169321099,0.38323,2610.1,2610.0,0.3922]
[1729169321602,0.38323,2610.1,2610.0,0.77543]
[1729169322407,0.38323,2610.1,2609.9,0.3855]
[1729169322408,0.38323,2610.0,2609.9,0.76874]
[1729169322602,0.38323,2610.0,2609.9,1.16794]
[1729169323994,0.38323,2610.0,2609.9,0.7847]
[1729169324200,0.38328,2609.8,2609.7,0.38327]
[1729169324702,0.38328,2609.7,2609.6,4.40949]
[1729169325897,0.38328,2609.7,2609.6,4.0262]
[1729169326500,0.38328,2609.7,2609.6,4.40949]
[1729169327302,0.38328,2609.7,2609.6,4.0262]
[1729169327504,0.38328,2609.7,2609.6,4.40949]
[1729169328113,0.38328,2609.7,2609.6,1.20169]
[1729169330424,0.38328,2609.7,2609.6,0.8184]
[1729169330819,0.416,2609.9,2609.4,0.99478176]
[1729169331122,0.38332,2609.5,2609.4,0.38331]
[1729169331517,0.4044,2609.6,2609.2,1.80608176]
[1729169331720,0.38334,2609.3,2609.2,1.19464]
[1729169331917,0.8266,2609.6,2609.3,0.38332]
[1729169331918,0.38334,2609.4,2609.3,0.38332]
[1729169336828,0.38334,2609.3,2609.2,1.19464]
[1729169337932,0.38332,2609.5,2609.4,0.38331]
[1729169338825,0.38334,2609.4,2609.3,0.38332]
[1729169339822,0.8266,2609.6,2609.4,0.38331]
[1729169339823,0.38332,2609.5,2609.4,0.38331]
[1729169340021,0.38332,2609.5,2609.4,1.76331]
[1729169340630,0.3833,2609.6,2609.5,0.38329]
[1729169340832,4.58194,2609.9,2609.5,1.38]
[1729169341027,0.38326,2609.8,2609.7,1.76327]
[1729169341224,0.38326,2609.8,2609.7,1.76328]
[1729169341737,0.38326,2609.9,2609.8,0.38326]
[1729169342034,0.4118,2610.2,2609.8,1.38]
[1729169342231,2.175,2610.2,2610.0,1.38]
[1729169342433,0.38322,2610.1,2610.0,1.38]
[1729169342937,0.38322,2610.1,2610.0,1.76323]
[1729169343132,0.38322,2610.1,2610.0,1.38]
[1729169343333,0.38322,2610.1,2610.0,1.76323]
[1729169343938,0.38322,2610.1,2610.0,0.38323]
[1729169344134,0.95799,2610.3,2609.8,2.99]
[1729169344328,0.38322,2610.2,2610.1,0.38321]
[1729169344530,0.38322,2610.2,2610.1,0.80621]
[1729169345839,0.3832,2610.4,2610.3,0.38318]
[1729169346043,0.3832,2610.4,2610.3,3.37318]
[1729169346543,3.59094,2610.7,2610.6,0.38314]
[1729169346743,0.38314,2610.7,2610.6,3.37314]
[1729169347843,0.38314,2610.7,2610.6,3.79054]
[1729169348239,0.38314,2610.7,2610.6,3.4074]
[1729169348739,0.38314,2610.7,2610.6,0.4174]
[1729169349236,0.38314,2610.7,2610.6,0.80054]
[1729169351041,0.38314,2610.7,2610.6,0.4174]
[1729169351850,0.38314,2610.7,2610.6,0.80054]
[1729169353045,0.38314,2610.7,2610.6,0.4174]
[1729169353539,0.38314,2610.7,2610.0,1.44322]
[1729169353540,9.8304,2610.7,2610.0,1.44322]
[1729169353742,0.38322,2610.1,2610.0,0.80722]
[1729169354842,0.38322,2610.1,2610.0,0.424]
[1729169355143,0.95798,2610.3,2609.9,3.59104]
[1729169355334,0.38323,2610.0,2609.9,3.59104]
[1729169355737,0.38323,2610.0,2609.9,3.2078]
[1729169356943,0.4075,2610.1,2609.8,0.4226]
[1729169357145,0.38329,2609.7,2609.6,0.38328]
[1729169357343,0.799,2610.1,2609.5,3.8328]
[1729169357544,0.38326,2609.9,2609.8,0.38325]
[1729169357843,0.389,2610.2,2609.7,6.1978]
[1729169358047,0.38324,2610.0,2609.9,0.38323]
[1729169359149,0.38324,2610.0,2609.9,0.79773]
[1729169360148,0.38324,2610.0,2609.9,0.4145]
[1729169360552,0.38324,2610.0,2609.9,0.79775]
[1729169360853,0.38324,2610.0,2609.9,0.4145]
[1729169361044,0.38324,2610.0,2609.9,0.79775]
[1729169362351,0.38324,2610.0,2609.9,0.4145]
[1729169362652,0.38324,2610.0,2609.9,0.79775]
[1729169363345,0.38324,2610.0,2609.9,0.4145]
[1729169363842,0.38324,2610.0,2609.9,0.79775]
[1729169364255,0.38324,2610.0,2609.9,0.4145]
[1729169364641,0.38324,2610.0,2609.9,0.79775]
[1729169364848,0.38324,2610.0,2609.9,0.4145]
[1729169365148,0.38324,2610.0,2609.5,1.37847]
[1729169365149,9.8312,2610.0,2609.5,2.99]
[1729169365355,0.38329,2609.6,2609.5,2.99]
[1729169365545,0.38331,2609.5,2609.4,0.8096]
[1729169365855,0.38331,2609.5,2609.4,1.19292]
[1729169366044,0.38331,2609.5,2609.4,0.8096]
[1729169366645,0.38332,2609.4,2609.3,2.99]
[1729169367945,0.38332,2609.4,2609.3,3.37334]
[1729169368151,0.38332,2609.4,2609.3,2.99]
[1729169369457,0.38332,2609.4,2609.3,3.37334]
[1729169370156,0.38332,2609.4,2609.3,2.99]
[1729169370456,0.38332,2609.4,2609.3,3.37334]
[1729169370659,0.7803,2609.9,2609.3,16.0298]
[1729169370852,3.2078,2610.0,2609.3,16.0298]
[1729169370853,3.2078,2610.0,2609.7,2.99]
[1729169371052,0.38326,2609.8,2609.7,3.37326]
[1729169377053,0.9581,2610.0,2609.6,0.76959]
[1729169377252,0.95814,2609.9,2609.5,6.5884]
[1729169377451,0.38329,2609.6,2609.5,0.77391]
[1729169377962,0.38329,2609.6,2609.5,0.3906]
[1729169378169,0.38329,2609.6,2609.5,0.77391]
[1729169379657,0.38329,2609.6,2609.5,0.3906]
[1729169380462,0.38329,2609.6,2609.5,0.77391]
[1729169381866,0.38329,2609.6,2609.5,3.76391]
[1729169382057,0.4079,2610.1,2609.5,3.3806]
[1729169382254,0.4079,2610.1,2609.7,2.99]
[1729169382461,4.0059,2610.2,2609.9,0.38324]
[1729169382462,0.38325,2610.0,2609.9,0.38324]
[1729169382762,4.96392,2610.2,2609.8,0.8412]
[1729169382763,4.0059,2610.2,2609.8,0.8412]
[1729169382956,0.38325,2609.9,2609.8,1.22445]
[1729169385965,0.38325,2609.9,2609.8,0.8412]
[1729169386268,0.38325,2609.9,2609.8,1.22446]
[1729169386867,0.38325,2609.9,2609.8,0.80176]
[1729169387064,0.4091,2610.0,2609.6,3.6049]
[1729169387258,0.38328,2609.7,2609.6,4.41058]
[1729169389467,0.38328,2609.8,2609.7,0.38326]
[1729169390373,0.38328,2609.8,2609.7,3.37326]
[1729169393272,0.38325,2610.0,2609.9,0.38323]
[1729169396877,0.38326,2609.9,2609.8,0.38326]
[1729169397872,0.38326,2609.9,2609.8,1.76326]
[1729169401466,1.37309,2610.3,2609.8,13.55016]
[1729169401672,0.38319,2610.3,2610.2,1.7632]
[1729169401970,0.38319,2610.3,2610.2,1.38]
[1729169402477,0.38319,2610.3,2610.2,1.7781]
[1729169403075,0.38322,2610.1,2610.0,1.38]
[1729169403275,0.38326,2609.8,2609.7,2.37709172]
[1729169403478,0.38326,2609.8,2609.7,1.38]
[1729169405781,4.97011,2610.0,2609.6,0.38329]
[1729169406078,0.38328,2609.7,2609.6,0.38329]
[1729169407373,0.38326,2609.9,2609.8,0.38324]
[1729169407677,3.2078,2610.3,2609.8,7.15596]
[1729169407978,0.38318,2610.5,2610.4,0.38316]
[1729169408579,0.38318,2610.5,2610.4,1.21006]
[1729169408784,0.38318,2610.5,2610.4,0.8269]
[1729169409081,0.38318,2610.5,2610.4,1.21007]
[1729169410086,0.95777,2610.9,2610.4,4.6573]
[1729169410397,0.95777,2610.9,2610.5,0.38315]
[1729169410398,0.38316,2610.6,2610.5,0.38315]
[1729169410682,0.38316,2610.6,2610.5,3.37315]
[1729169410886,0.38314,2610.7,2610.6,0.38313]
[1729169411184,0.8102,2611.0,2610.5,3.37315]
[1729169411185,0.38314,2610.6,2610.5,3.37315]
[1729169411481,0.38314,2610.6,2610.5,0.38315]
[1729169421193,0.8102,2611.0,2610.5,2.99]
[1729169421379,0.38311,2610.9,2610.8,0.3831]
[1729169421588,3.2078,2611.1,2611.0,0.38307]
[1729169421589,0.38309,2611.1,2611.0,0.38307]
[1729169423078,0.38309,2611.0,2610.9,1.17839]
[1729169423281,0.38309,2611.0,2610.9,0.3924]
[1729169423482,0.38314,2610.7,2610.6,0.38313]
[1729169424598,0.38313,2610.8,2610.7,0.38312]
[1729169424897,0.38313,2610.8,2610.6,2.99]
[1729169424898,0.4121,2611.2,2610.6,3.94786]
[1729169425110,0.38309,2611.1,2611.0,0.38307]
[1729169425590,0.38312,2610.9,2610.8,0.3831]
[1729169427481,0.38312,2610.8,2610.7,0.38313]
[1729169429294,1.36463,2611.0,2610.5,2.99]
[1729169429491,0.38314,2610.7,2610.6,0.38313]
[1729169430102,0.38314,2610.6,2610.5,3.37315]
[1729169431397,0.38314,2610.7,2610.6,0.38313]
[1729169432896,0.38312,2610.8,2610.7,0.38313]
[1729169433109,0.38312,2610.8,2610.7,3.37313]
[1729169434588,0.38312,2610.8,2610.5,0.9579]
[1729169434589,0.38316,2610.6,2610.5,3.37315]
[1729169436302,0.38316,2610.6,2610.5,3.37316]
[1729169436507,0.38316,2610.5,2610.4,3.2078]
[1729169437002,0.38316,2610.5,2610.4,3.59097]
[1729169437204,0.38316,2610.5,2610.4,3.2078]
[1729169437407,0.38316,2610.5,2610.4,3.59097]
[1729169437813,0.38316,2610.5,2610.4,3.2078]